[Event "Titled Tuesday Blitz February 07 Late 2023"]
[White "Grigorov, Grigor"]
[Black "Sjugirov, Sanan"]
[WhiteFideId "2907313"]
[BlackFideId "4189302"]
[WhiteElo "2510"]
[BlackElo "2712"]
[Result "1-0"]
[Round "05"]
[TimeControl "180+2"]
[Date "2023.02.07"]
[WhiteClock "0:00:07"]
[BlackClock "0:00:03"]

1. d4 {[%clk 0:03:00]}  Nf6 {[%clk 0:02:59]} 2. Nf3 {[%clk 0:03:00]}  e6 {[%clk 0:02:59]} 3. Bg5 {[%clk 0:03:00]}  h6 {[%clk 0:02:57]} 4. Bh4 {[%clk 0:03:00]}  d6 {[%clk 0:02:57]} 5. Nbd2 {[%clk 0:02:59]}  g5 {[%clk 0:02:52]} 6. Bg3 {[%clk 0:02:58]}  Nh5 {[%clk 0:02:53]} 7. c3 {[%clk 0:02:57]}  Bg7 {[%clk 0:02:51]} 8. e4 {[%clk 0:02:57]}  Nd7 {[%clk 0:02:48]} 9. Nc4 {[%clk 0:02:57]}  Qe7 {[%clk 0:02:44]} 10. Nfd2 {[%clk 0:02:48]}  Nxg3 {[%clk 0:02:42]} 11. hxg3 {[%clk 0:02:49]}  b6 {[%clk 0:02:27]} 12. Ne3 {[%clk 0:02:47]}  Bb7 {[%clk 0:02:25]} 13. Bd3 {[%clk 0:02:46]}  a6 {[%clk 0:02:20]} 14. Qe2 {[%clk 0:02:37]}  c5 {[%clk 0:02:16]} 15. d5 {[%clk 0:02:33]}  b5 {[%clk 0:02:10]} 16. a4 {[%clk 0:02:24]}  c4 {[%clk 0:02:08]} 17. Bc2 {[%clk 0:02:23]}  Nc5 {[%clk 0:01:44]} 18. axb5 {[%clk 0:02:15]}  axb5 {[%clk 0:01:43]} 19. Rxa8+ {[%clk 0:02:15]}  Bxa8 {[%clk 0:01:44]} 20. O-O {[%clk 0:01:54]}  O-O {[%clk 0:01:43]} 21. Ra1 {[%clk 0:01:46]}  exd5 {[%clk 0:00:58]} 22. Nf5 {[%clk 0:01:45]}  Qf6 {[%clk 0:00:58]} 23. exd5 {[%clk 0:01:34]}  Bb7 {[%clk 0:00:20]} 24. Ra7 {[%clk 0:01:29]}  Bc8 {[%clk 0:00:13]} 25. Ne7+ {[%clk 0:01:24]}  Kh8 {[%clk 0:00:14]} 26. Ne4 {[%clk 0:01:14]}  Qe5 {[%clk 0:00:07]} 27. Qf3 {[%clk 0:00:48]}  g4 {[%clk 0:00:07]} 28. Qf4 {[%clk 0:00:39]}  Qxf4 {[%clk 0:00:05]} 29. gxf4 {[%clk 0:00:39]}  Nxe4 {[%clk 0:00:04]} 30. Bxe4 {[%clk 0:00:39]}  Bf6 {[%clk 0:00:04]} 31. Nxc8 {[%clk 0:00:30]}  Rxc8 {[%clk 0:00:05]} 32. Rxf7 {[%clk 0:00:30]}  Bg7 {[%clk 0:00:05]} 33. Rb7 {[%clk 0:00:27]}  Re8 {[%clk 0:00:04]} 34. Bg6 {[%clk 0:00:20]}  Rf8 {[%clk 0:00:03]} 35. g3 {[%clk 0:00:19]}  Bf6 {[%clk 0:00:02]} 36. Rxb5 {[%clk 0:00:18]}  Kg7 {[%clk 0:00:02]} 37. Bh5 {[%clk 0:00:17]}  Be7 {[%clk 0:00:01]} 38. Bxg4 {[%clk 0:00:16]}  Kf6 {[%clk 0:00:01]} 39. Be2 {[%clk 0:00:16]}  Rc8 {[%clk 0:00:01]} 40. Rb4 {[%clk 0:00:16]}  Ra8 {[%clk 0:00:01]} 41. Bxc4 {[%clk 0:00:16]}  Kf5 {[%clk 0:00:02]} 42. Kg2 {[%clk 0:00:15]}  Kf6 {[%clk 0:00:01]} 43. Bd3 {[%clk 0:00:15]}  Ra2 {[%clk 0:00:01]} 44. Be4 {[%clk 0:00:14]}  Ra1 {[%clk 0:00:02]} 45. Rb7 {[%clk 0:00:14]}  Re1 {[%clk 0:00:02]} 46. Bf3 {[%clk 0:00:14]}  Rb1 {[%clk 0:00:02]} 47. g4 {[%clk 0:00:13]}  Rc1 {[%clk 0:00:02]} 48. Be4 {[%clk 0:00:11]}  Re1 {[%clk 0:00:01]} 49. g5+ {[%clk 0:00:10]}  hxg5 {[%clk 0:00:02]} 50. fxg5+ {[%clk 0:00:11]}  Kf7 {[%clk 0:00:03]} 51. Bd3 {[%clk 0:00:09]}  Re5 {[%clk 0:00:02]} 52. f4 {[%clk 0:00:09]}  Re3 {[%clk 0:00:03]} 53. Bf5 {[%clk 0:00:09]}  Kf8 {[%clk 0:00:02]} 54. Be6 {[%clk 0:00:09]}  Rd3 {[%clk 0:00:02]} 55. Kf2 {[%clk 0:00:09]}  Rd2+ {[%clk 0:00:02]} 56. Kf3 {[%clk 0:00:09]}  Rd3+ {[%clk 0:00:02]} 57. Kg4 {[%clk 0:00:09]}  Rd1 {[%clk 0:00:03]} 58. Kf5 {[%clk 0:00:09]}  Rg1 {[%clk 0:00:03]} 59. Kg6 {[%clk 0:00:08]}  Ke8 {[%clk 0:00:04]} 60. Rb8+ {[%clk 0:00:08]}  Bd8 {[%clk 0:00:04]} 61. Rb7 {[%clk 0:00:08]}  Be7 {[%clk 0:00:05]} 62. b4 {[%clk 0:00:06]}  Rg3 {[%clk 0:00:05]} 63. c4 {[%clk 0:00:05]}  Rf3 {[%clk 0:00:04]} 64. Rb8+ {[%clk 0:00:06]}  Bd8 {[%clk 0:00:04]} 65. f5 {[%clk 0:00:06]}  Rf4 {[%clk 0:00:03]} 66. f6 {[%clk 0:00:06]}  Rxf6+ {[%clk 0:00:03]} 67. gxf6 {[%clk 0:00:06]}  Kf8 {[%clk 0:00:03]} 68. Rxd8# {[%clk 0:00:07]} 1-0


[Site "https://www.chess.com"]

[Event "Titled Tuesday Blitz February 07 Late 2023"]
[White "Makhnev, Denis"]
[Black "Dzida, Kamil"]
[WhiteFideId "13707647"]
[BlackFideId "21828652"]
[WhiteElo "2483"]
[BlackElo "2352"]
[Result "1-0"]
[Round "05"]
[TimeControl "180+2"]
[Date "2023.02.07"]
[WhiteClock "0:02:05"]
[BlackClock "0:00:05"]

1. d4 {[%clk 0:02:55]}  Nf6 {[%clk 0:02:59]} 2. c4 {[%clk 0:02:55]}  e6 {[%clk 0:03:00]} 3. Nf3 {[%clk 0:02:55]}  d5 {[%clk 0:02:58]} 4. Nc3 {[%clk 0:02:56]}  Bb4 {[%clk 0:02:58]} 5. Qa4+ {[%clk 0:02:56]}  Nc6 {[%clk 0:02:58]} 6. e3 {[%clk 0:02:57]}  O-O {[%clk 0:02:58]} 7. Qc2 {[%clk 0:02:58]}  Re8 {[%clk 0:02:46]} 8. Bd2 {[%clk 0:02:57]}  Bf8 {[%clk 0:02:42]} 9. a3 {[%clk 0:02:55]}  e5 {[%clk 0:02:42]} 10. dxe5 {[%clk 0:02:55]}  Nxe5 {[%clk 0:02:42]} 11. cxd5 {[%clk 0:02:55]}  Nxf3+ {[%clk 0:02:09]} 12. gxf3 {[%clk 0:02:56]}  Nxd5 {[%clk 0:02:09]} 13. O-O-O {[%clk 0:02:56]}  Nxc3 {[%clk 0:02:05]} 14. Bxc3 {[%clk 0:02:56]}  Qh4 {[%clk 0:02:06]} 15. Bd3 {[%clk 0:02:55]}  Be6 {[%clk 0:01:48]} 16. Rhg1 {[%clk 0:02:54]}  g6 {[%clk 0:01:43]} 17. f4 {[%clk 0:02:50]}  Rad8 {[%clk 0:00:55]} 18. f5 {[%clk 0:02:46]}  Rxd3 {[%clk 0:00:55]} 19. Qxd3 {[%clk 0:02:38]}  Bc4 {[%clk 0:00:48]} 20. Qd7 {[%clk 0:02:09]}  Qxf2 {[%clk 0:00:22]} 21. fxg6 {[%clk 0:02:06]}  Qxe3+ {[%clk 0:00:17]} 22. Bd2 {[%clk 0:02:05]}  Qe6 {[%clk 0:00:06]} 23. gxf7+ {[%clk 0:02:04]}  Kh8 {[%clk 0:00:05]} 24. Rg8# {[%clk 0:02:05]} 1-0


[Site "https://www.chess.com"]

[Event "Titled Tuesday Blitz February 07 Late 2023"]
[White "Dourerassou, Jonathan"]
[Black "Kollars, Dmitrij"]
[WhiteFideId "628050"]
[BlackFideId "12909572"]
[WhiteElo "2414"]
[BlackElo "2607"]
[Result "0-1"]
[Round "05"]
[TimeControl "180+2"]
[Date "2023.02.07"]
[WhiteClock "0:00:10"]
[BlackClock "0:00:08"]

1. d4 {[%clk 0:03:00]}  d5 {[%clk 0:02:58]} 2. Nf3 {[%clk 0:02:59]}  Nf6 {[%clk 0:02:58]} 3. Bf4 {[%clk 0:03:00]}  c5 {[%clk 0:02:57]} 4. e3 {[%clk 0:02:59]}  Nc6 {[%clk 0:02:56]} 5. Nbd2 {[%clk 0:02:59]}  Bg4 {[%clk 0:02:54]} 6. c3 {[%clk 0:02:59]}  e6 {[%clk 0:02:53]} 7. h3 {[%clk 0:02:59]}  Bxf3 {[%clk 0:02:53]} 8. Nxf3 {[%clk 0:02:59]}  Bd6 {[%clk 0:02:53]} 9. Ne5 {[%clk 0:02:55]}  O-O {[%clk 0:02:50]} 10. Bd3 {[%clk 0:02:50]}  Qc7 {[%clk 0:02:40]} 11. Ng4 {[%clk 0:02:36]}  Nd7 {[%clk 0:02:23]} 12. Bxd6 {[%clk 0:02:17]}  Qxd6 {[%clk 0:02:24]} 13. O-O {[%clk 0:02:17]}  f5 {[%clk 0:02:10]} 14. Nh2 {[%clk 0:02:16]}  c4 {[%clk 0:02:09]} 15. Bc2 {[%clk 0:02:16]}  b5 {[%clk 0:02:09]} 16. f4 {[%clk 0:02:14]}  b4 {[%clk 0:02:03]} 17. cxb4 {[%clk 0:02:08]}  Nxb4 {[%clk 0:02:01]} 18. Nf3 {[%clk 0:02:07]}  Rab8 {[%clk 0:02:00]} 19. Rf2 {[%clk 0:01:59]}  Rb6 {[%clk 0:01:58]} 20. a3 {[%clk 0:01:56]}  Nxc2 {[%clk 0:01:57]} 21. Rxc2 {[%clk 0:01:57]}  Rfb8 {[%clk 0:01:57]} 22. Qd2 {[%clk 0:01:53]}  Rb3 {[%clk 0:01:54]} 23. Ne5 {[%clk 0:01:48]}  Nxe5 {[%clk 0:01:53]} 24. fxe5 {[%clk 0:01:48]}  Qb6 {[%clk 0:01:53]} 25. Rb1 {[%clk 0:01:44]}  Rxa3 {[%clk 0:01:52]} 26. bxa3 {[%clk 0:01:41]}  Qxb1+ {[%clk 0:01:52]} 27. Kh2 {[%clk 0:01:42]}  h6 {[%clk 0:01:44]} 28. a4 {[%clk 0:01:40]}  Kh7 {[%clk 0:01:43]} 29. a5 {[%clk 0:01:36]}  Rb3 {[%clk 0:01:42]} 30. Qf2 {[%clk 0:01:22]}  c3 {[%clk 0:01:31]} 31. e4 {[%clk 0:01:17]}  Rb2 {[%clk 0:01:28]} 32. Rxb2 {[%clk 0:01:15]}  Qxb2 {[%clk 0:01:28]} 33. Qg3 {[%clk 0:01:04]}  c2 {[%clk 0:01:18]} 34. exf5 {[%clk 0:01:03]}  exf5 {[%clk 0:01:14]} 35. Qf3 {[%clk 0:00:59]}  c1=Q {[%clk 0:01:01]} 36. Qxf5+ {[%clk 0:00:59]}  Kg8 {[%clk 0:01:01]} 37. Qe6+ {[%clk 0:00:52]}  Kf8 {[%clk 0:01:02]} 38. Qd6+ {[%clk 0:00:48]}  Ke8 {[%clk 0:01:00]} 39. Qe6+ {[%clk 0:00:48]}  Kd8 {[%clk 0:00:57]} 40. Qxd5+ {[%clk 0:00:47]}  Kc8 {[%clk 0:00:50]} 41. Qg8+ {[%clk 0:00:46]}  Kb7 {[%clk 0:00:49]} 42. Qxg7+ {[%clk 0:00:45]}  Ka6 {[%clk 0:00:47]} 43. Qf6+ {[%clk 0:00:34]}  Kxa5 {[%clk 0:00:47]} 44. Qd8+ {[%clk 0:00:34]}  Kb4 {[%clk 0:00:43]} 45. Qd6+ {[%clk 0:00:30]}  Kc3 {[%clk 0:00:42]} 46. e6 {[%clk 0:00:28]}  Qcd2 {[%clk 0:00:37]} 47. Qg3+ {[%clk 0:00:26]}  Qd3 {[%clk 0:00:25]} 48. Qc7+ {[%clk 0:00:26]}  Qc4 {[%clk 0:00:21]} 49. Qg3+ {[%clk 0:00:25]}  Qd3 {[%clk 0:00:16]} 50. Qc7+ {[%clk 0:00:25]}  Kd2 {[%clk 0:00:15]} 51. e7 {[%clk 0:00:23]}  Qe2 {[%clk 0:00:13]} 52. Qd7 {[%clk 0:00:14]}  Qb8+ {[%clk 0:00:09]} 53. Kh1 {[%clk 0:00:10]}  Qf1# {[%clk 0:00:08]} 0-1


[Site "https://www.chess.com"]

[Event "Titled Tuesday Blitz February 07 Late 2023"]
[White "Dardha, Daniel"]
[Black "Mgeladze, Tamaz"]
[WhiteFideId "240990"]
[BlackFideId "13601202"]
[WhiteElo "2631"]
[BlackElo "2388"]
[Result "1/2-1/2"]
[Round "05"]
[TimeControl "180+2"]
[Date "2023.02.07"]
[WhiteClock "0:00:18"]
[BlackClock "0:00:06"]

1. c3 {[%clk 0:02:57]}  Nf6 {[%clk 0:02:59]} 2. c4 {[%clk 0:02:57]}  g6 {[%clk 0:02:59]} 3. Nc3 {[%clk 0:02:57]}  Bg7 {[%clk 0:03:00]} 4. e4 {[%clk 0:02:57]}  c5 {[%clk 0:03:00]} 5. g3 {[%clk 0:02:56]}  O-O {[%clk 0:02:59]} 6. Bg2 {[%clk 0:02:56]}  Nc6 {[%clk 0:03:00]} 7. Nge2 {[%clk 0:02:54]}  d6 {[%clk 0:03:00]} 8. d3 {[%clk 0:02:54]}  a6 {[%clk 0:03:00]} 9. O-O {[%clk 0:02:47]}  Rb8 {[%clk 0:03:00]} 10. a4 {[%clk 0:02:46]}  Bd7 {[%clk 0:03:00]} 11. h3 {[%clk 0:02:41]}  Ne8 {[%clk 0:02:55]} 12. Be3 {[%clk 0:02:40]}  Nd4 {[%clk 0:02:54]} 13. Rb1 {[%clk 0:02:39]}  b5 {[%clk 0:02:52]} 14. axb5 {[%clk 0:02:40]}  axb5 {[%clk 0:02:53]} 15. Bxd4 {[%clk 0:02:36]}  cxd4 {[%clk 0:02:51]} 16. Nxb5 {[%clk 0:02:36]}  Bxb5 {[%clk 0:02:51]} 17. cxb5 {[%clk 0:02:37]}  Rxb5 {[%clk 0:02:52]} 18. Qa4 {[%clk 0:02:30]}  Qb6 {[%clk 0:02:50]} 19. Rfc1 {[%clk 0:02:19]}  Rxb2 {[%clk 0:02:42]} 20. Rxb2 {[%clk 0:02:09]}  Qxb2 {[%clk 0:02:43]} 21. Rc2 {[%clk 0:02:08]}  Qb1+ {[%clk 0:02:38]} 22. Kh2 {[%clk 0:02:04]}  Qd1 {[%clk 0:01:58]} 23. Qc4 {[%clk 0:01:49]}  d5 {[%clk 0:01:55]} 24. exd5 {[%clk 0:01:40]}  Nd6 {[%clk 0:01:55]} 25. Qc7 {[%clk 0:01:40]}  Qxd3 {[%clk 0:01:53]} 26. Nf4 {[%clk 0:01:39]}  Qd1 {[%clk 0:01:48]} 27. Rc1 {[%clk 0:01:24]}  Qd2 {[%clk 0:01:48]} 28. Rc2 {[%clk 0:01:24]}  Qd1 {[%clk 0:01:49]} 29. Re2 {[%clk 0:01:15]}  Nf5 {[%clk 0:01:32]} 30. Be4 {[%clk 0:01:13]}  e5 {[%clk 0:00:59]} 31. dxe6 {[%clk 0:01:06]}  fxe6 {[%clk 0:01:00]} 32. Bxf5 {[%clk 0:01:04]}  exf5 {[%clk 0:00:25]} 33. Re7 {[%clk 0:01:03]}  Bf6 {[%clk 0:00:21]} 34. Ne6 {[%clk 0:01:03]}  Qe2 {[%clk 0:00:07]} 35. Kg1 {[%clk 0:00:40]}  Qe1+ {[%clk 0:00:07]} 36. Kg2 {[%clk 0:00:41]}  Qe4+ {[%clk 0:00:08]} 37. Kf1 {[%clk 0:00:40]}  Qd3+ {[%clk 0:00:08]} 38. Ke1 {[%clk 0:00:39]}  Qc3+ {[%clk 0:00:07]} 39. Qxc3 {[%clk 0:00:38]}  dxc3 {[%clk 0:00:08]} 40. Nxf8 {[%clk 0:00:21]}  Bxe7 {[%clk 0:00:08]} 41. Nd7 {[%clk 0:00:22]}  Kf7 {[%clk 0:00:08]} 42. Ke2 {[%clk 0:00:21]}  Ke6 {[%clk 0:00:07]} 43. Nb6 {[%clk 0:00:22]}  Bc5 {[%clk 0:00:06]} 44. Na4 {[%clk 0:00:22]}  Bd4 {[%clk 0:00:07]} 45. f3 {[%clk 0:00:22]}  Kd5 {[%clk 0:00:06]} 46. Kd3 {[%clk 0:00:22]}  g5 {[%clk 0:00:04]} 47. Nxc3+ {[%clk 0:00:21]}  Bxc3 {[%clk 0:00:05]} 48. Kxc3 {[%clk 0:00:22]}  g4 {[%clk 0:00:03]} 49. hxg4 {[%clk 0:00:15]}  fxg4 {[%clk 0:00:04]} 50. Kd3 {[%clk 0:00:16]}  gxf3 {[%clk 0:00:04]} 51. Ke3 {[%clk 0:00:16]}  f2 {[%clk 0:00:04]} 52. Kxf2 {[%clk 0:00:16]}  Ke4 {[%clk 0:00:05]} 53. Kg2 {[%clk 0:00:17]}  Kf5 {[%clk 0:00:06]} 54. Kh3 {[%clk 0:00:18]}  Kg5 {[%clk 0:00:05]} 55. g4 {[%clk 0:00:17]}  h5 {[%clk 0:00:06]} 56. gxh5 {[%clk 0:00:18]}  Kxh5 {[%clk 0:00:06]} 1/2-1/2


[Site "https://www.chess.com"]

[Event "Titled Tuesday Blitz February 07 Late 2023"]
[White "Suleymanli, Aydin"]
[Black "UnknownMagician"]
[WhiteFideId "13413937"]
[WhiteElo "2560"]
[BlackElo "2696"]
[Result "1-0"]
[Round "05"]
[TimeControl "180+2"]
[Date "2023.02.07"]
[WhiteClock "0:00:04"]
[BlackClock "0:00:16"]

1. e4 {[%clk 0:03:00]}  c6 {[%clk 0:02:55]} 2. Bc4 {[%clk 0:02:52]}  d5 {[%clk 0:02:55]} 3. Bb3 {[%clk 0:02:52]}  g6 {[%clk 0:02:54]} 4. Nc3 {[%clk 0:02:48]}  Nf6 {[%clk 0:02:43]} 5. Nf3 {[%clk 0:02:43]}  dxe4 {[%clk 0:02:39]} 6. Ng5 {[%clk 0:02:42]}  e6 {[%clk 0:02:36]} 7. O-O {[%clk 0:02:40]}  Bg7 {[%clk 0:02:36]} 8. Ngxe4 {[%clk 0:02:39]}  O-O {[%clk 0:02:32]} 9. Nxf6+ {[%clk 0:02:36]}  Qxf6 {[%clk 0:02:33]} 10. Ne4 {[%clk 0:02:35]}  Qd4 {[%clk 0:02:29]} 11. d3 {[%clk 0:02:34]}  Nd7 {[%clk 0:02:25]} 12. c3 {[%clk 0:02:32]}  Qb6 {[%clk 0:02:24]} 13. Re1 {[%clk 0:02:31]}  a5 {[%clk 0:02:22]} 14. Bf4 {[%clk 0:02:23]}  a4 {[%clk 0:02:14]} 15. Bxa4 {[%clk 0:02:22]}  Qxb2 {[%clk 0:02:15]} 16. Bb3 {[%clk 0:02:21]}  Nf6 {[%clk 0:02:13]} 17. Rb1 {[%clk 0:02:12]}  Qa3 {[%clk 0:02:11]} 18. Bd6 {[%clk 0:02:12]}  Qa5 {[%clk 0:02:01]} 19. Bxf8 {[%clk 0:02:11]}  Kxf8 {[%clk 0:02:02]} 20. Qf3 {[%clk 0:01:53]}  Nxe4 {[%clk 0:01:52]} 21. Rxe4 {[%clk 0:01:49]}  Qxc3 {[%clk 0:01:53]} 22. Bxe6 {[%clk 0:01:37]}  Bxe6 {[%clk 0:01:49]} 23. Rxe6 {[%clk 0:01:38]}  Rxa2 {[%clk 0:01:46]} 24. Rbe1 {[%clk 0:01:28]}  Bd4 {[%clk 0:01:38]} 25. R6e2 {[%clk 0:01:03]}  Rxe2 {[%clk 0:01:36]} 26. Qxe2 {[%clk 0:01:04]}  b5 {[%clk 0:01:33]} 27. Rb1 {[%clk 0:00:58]}  b4 {[%clk 0:01:33]} 28. Qd1 {[%clk 0:00:58]}  c5 {[%clk 0:01:24]} 29. Rb3 {[%clk 0:00:52]}  Qa1 {[%clk 0:01:24]} 30. Qxa1 {[%clk 0:00:52]}  Bxa1 {[%clk 0:01:25]} 31. Kf1 {[%clk 0:00:49]}  Ke7 {[%clk 0:01:24]} 32. Ke2 {[%clk 0:00:49]}  Kd6 {[%clk 0:01:24]} 33. Kd1 {[%clk 0:00:46]}  Bd4 {[%clk 0:01:19]} 34. f3 {[%clk 0:00:44]}  Ke5 {[%clk 0:01:18]} 35. Rb1 {[%clk 0:00:31]}  Kf4 {[%clk 0:01:17]} 36. Ke2 {[%clk 0:00:25]}  h5 {[%clk 0:01:10]} 37. g3+ {[%clk 0:00:25]}  Kf5 {[%clk 0:01:11]} 38. Kd2 {[%clk 0:00:25]}  h4 {[%clk 0:01:07]} 39. Rf1 {[%clk 0:00:16]}  g5 {[%clk 0:01:05]} 40. Kc2 {[%clk 0:00:15]}  f6 {[%clk 0:00:56]} 41. Kb3 {[%clk 0:00:14]}  g4 {[%clk 0:00:57]} 42. fxg4+ {[%clk 0:00:13]}  Kxg4 {[%clk 0:00:57]} 43. Rf4+ {[%clk 0:00:14]}  Kg5 {[%clk 0:00:54]} 44. Rxh4 {[%clk 0:00:14]}  Bg1 {[%clk 0:00:49]} 45. Kc4 {[%clk 0:00:13]}  f5 {[%clk 0:00:43]} 46. Kb3 {[%clk 0:00:10]}  Be3 {[%clk 0:00:41]} 47. Rh8 {[%clk 0:00:05]}  Kg4 {[%clk 0:00:40]} 48. Rg8+ {[%clk 0:00:05]}  Kf3 {[%clk 0:00:40]} 49. Rf8 {[%clk 0:00:05]}  Ke2 {[%clk 0:00:35]} 50. Kc4 {[%clk 0:00:06]}  Kd2 {[%clk 0:00:31]} 51. Rxf5 {[%clk 0:00:05]}  Kc2 {[%clk 0:00:31]} 52. Re5 {[%clk 0:00:05]}  Bd2 {[%clk 0:00:27]} 53. Rxc5 {[%clk 0:00:02]}  b3 {[%clk 0:00:21]} 54. Rb5 {[%clk 0:00:03]}  b2 {[%clk 0:00:22]} 55. d4 {[%clk 0:00:03]}  Bg5 {[%clk 0:00:16]} 56. d5 {[%clk 0:00:02]}  Bd8 {[%clk 0:00:16]} 57. h4 {[%clk 0:00:02]}  Bc7 {[%clk 0:00:16]} 58. h5 {[%clk 0:00:03]}  Bxg3 {[%clk 0:00:16]} 59. h6 {[%clk 0:00:04]}  Be5 {[%clk 0:00:16]} 60. h7 {[%clk 0:00:04]}  Bh8 {[%clk 0:00:16]} 61. d6 {[%clk 0:00:04]} 1-0


[Site "https://www.chess.com"]

[Event "Titled Tuesday Blitz February 07 Late 2023"]
[White "Kalogeris, Ioannis"]
[Black "Perez Ponsa, Federico"]
[WhiteFideId "4239563"]
[BlackFideId "117927"]
[WhiteElo "2423"]
[BlackElo "2532"]
[Result "0-1"]
[Round "05"]
[TimeControl "180+2"]
[Date "2023.02.07"]
[WhiteClock "0:00:10"]
[BlackClock "0:00:09"]

1. e4 {[%clk 0:03:00]}  c5 {[%clk 0:02:54]} 2. Nf3 {[%clk 0:03:00]}  d6 {[%clk 0:02:54]} 3. Nc3 {[%clk 0:02:55]}  Nf6 {[%clk 0:02:54]} 4. d4 {[%clk 0:02:54]}  cxd4 {[%clk 0:02:54]} 5. Nxd4 {[%clk 0:02:55]}  a6 {[%clk 0:02:54]} 6. g3 {[%clk 0:02:55]}  e5 {[%clk 0:02:53]} 7. Nf3 {[%clk 0:02:55]}  Be7 {[%clk 0:02:51]} 8. Nh4 {[%clk 0:02:54]}  g6 {[%clk 0:02:47]} 9. Ng2 {[%clk 0:02:54]}  h5 {[%clk 0:02:40]} 10. h3 {[%clk 0:02:42]}  b5 {[%clk 0:02:32]} 11. Ne3 {[%clk 0:02:40]}  Bb7 {[%clk 0:02:27]} 12. Bg2 {[%clk 0:02:39]}  Nbd7 {[%clk 0:02:27]} 13. a4 {[%clk 0:02:33]}  b4 {[%clk 0:02:23]} 14. Ncd5 {[%clk 0:02:33]}  Nxd5 {[%clk 0:02:23]} 15. Nxd5 {[%clk 0:02:33]}  Bxd5 {[%clk 0:02:02]} 16. Qxd5 {[%clk 0:02:32]}  h4 {[%clk 0:02:02]} 17. O-O {[%clk 0:02:24]}  Rc8 {[%clk 0:02:02]} 18. Bd2 {[%clk 0:01:49]}  Rxc2 {[%clk 0:01:51]} 19. Bxb4 {[%clk 0:01:41]}  hxg3 {[%clk 0:01:46]} 20. Ba5 {[%clk 0:01:40]}  Qc8 {[%clk 0:01:18]} 21. fxg3 {[%clk 0:01:39]}  Nf6 {[%clk 0:01:18]} 22. Qb3 {[%clk 0:01:31]}  Rxg2+ {[%clk 0:00:31]} 23. Kxg2 {[%clk 0:01:31]}  Qxh3+ {[%clk 0:00:31]} 24. Kf2 {[%clk 0:01:31]}  Nxe4+ {[%clk 0:00:29]} 25. Ke1 {[%clk 0:01:32]}  O-O {[%clk 0:00:24]} 26. Rc1 {[%clk 0:01:16]}  Nxg3 {[%clk 0:00:18]} 27. Rg1 {[%clk 0:01:10]}  Bh4 {[%clk 0:00:19]} 28. Kd1 {[%clk 0:00:58]}  Qg4+ {[%clk 0:00:17]} 29. Kc2 {[%clk 0:00:51]}  Qe4+ {[%clk 0:00:17]} 30. Qd3 {[%clk 0:00:49]}  Rc8+ {[%clk 0:00:17]} 31. Bc3 {[%clk 0:00:49]}  Qxd3+ {[%clk 0:00:05]} 32. Kxd3 {[%clk 0:00:50]}  e4+ {[%clk 0:00:05]} 33. Kc2 {[%clk 0:00:33]}  Ne2 {[%clk 0:00:06]} 34. Rh1 {[%clk 0:00:33]}  Bf6 {[%clk 0:00:04]} 35. Rcf1 {[%clk 0:00:25]}  Nxc3 {[%clk 0:00:03]} 36. bxc3 {[%clk 0:00:22]}  Rxc3+ {[%clk 0:00:04]} 37. Kd2 {[%clk 0:00:23]}  Rd3+ {[%clk 0:00:05]} 38. Ke2 {[%clk 0:00:23]}  Be5 {[%clk 0:00:05]} 39. Rb1 {[%clk 0:00:23]}  Kg7 {[%clk 0:00:05]} 40. Rb7 {[%clk 0:00:22]}  Ra3 {[%clk 0:00:04]} 41. Rf1 {[%clk 0:00:23]}  Ra2+ {[%clk 0:00:04]} 42. Ke3 {[%clk 0:00:23]}  Rxa4 {[%clk 0:00:03]} 43. Rfxf7+ {[%clk 0:00:22]}  Kh6 {[%clk 0:00:04]} 44. Rf1 {[%clk 0:00:19]}  d5 {[%clk 0:00:03]} 45. Rd7 {[%clk 0:00:20]}  Ra3+ {[%clk 0:00:02]} 46. Ke2 {[%clk 0:00:20]}  Ra2+ {[%clk 0:00:03]} 47. Ke3 {[%clk 0:00:20]}  Ra3+ {[%clk 0:00:03]} 48. Ke2 {[%clk 0:00:20]}  Rd3 {[%clk 0:00:04]} 49. Re7 {[%clk 0:00:20]}  Bc3 {[%clk 0:00:04]} 50. Rh1+ {[%clk 0:00:19]}  Kg5 {[%clk 0:00:04]} 51. Rf7 {[%clk 0:00:19]}  Bd4 {[%clk 0:00:03]} 52. Rb1 {[%clk 0:00:14]}  Re3+ {[%clk 0:00:04]} 53. Kd2 {[%clk 0:00:14]}  Rd3+ {[%clk 0:00:04]} 54. Ke2 {[%clk 0:00:15]}  a5 {[%clk 0:00:03]} 55. Rd7 {[%clk 0:00:15]}  Bc3 {[%clk 0:00:02]} 56. Rb5 {[%clk 0:00:15]}  Rd2+ {[%clk 0:00:03]} 57. Ke3 {[%clk 0:00:15]}  Rd3+ {[%clk 0:00:03]} 58. Ke2 {[%clk 0:00:15]}  Kf4 {[%clk 0:00:04]} 59. Rf7+ {[%clk 0:00:15]}  Ke5 {[%clk 0:00:04]} 60. Re7+ {[%clk 0:00:16]}  Kd4 {[%clk 0:00:04]} 61. Rd7 {[%clk 0:00:17]}  Rd2+ {[%clk 0:00:05]} 62. Kf1 {[%clk 0:00:17]}  Kc4 {[%clk 0:00:05]} 63. Rbb7 {[%clk 0:00:17]}  e3 {[%clk 0:00:06]} 64. Rbc7+ {[%clk 0:00:16]}  Kd4 {[%clk 0:00:07]} 65. Kg1 {[%clk 0:00:10]}  Rd1+ {[%clk 0:00:06]} 66. Kg2 {[%clk 0:00:10]}  e2 {[%clk 0:00:07]} 67. Re7 {[%clk 0:00:09]}  e1=Q {[%clk 0:00:07]} 68. Rxe1 {[%clk 0:00:10]}  Rxe1 {[%clk 0:00:08]} 69. Kf3 {[%clk 0:00:10]}  Re3+ {[%clk 0:00:09]} 0-1


[Site "https://www.chess.com"]